[Event "NJSK 2026 Jeugd C"]
[Site "Helmond, Netherlands"]
[Date "2026.04.28"]
[Round "5.9"]
[White "Botter, Simon"]
[Black "Nguyen, Paul"]
[Result "1-0"]
[TimeControl "90min/40moves + 30sec/move"]
[WhiteTitle "-"]
[BlackTitle "-"]
[WhiteFideId "40107698"]
[BlackFideId "1095072"]
[WhiteElo "1988"]
[BlackElo "1845"]

1. d4 {[%clk 01:30:36]} {[%emt 00:00:23]} d5 {[%clk 01:30:54]} {[%emt
00:00:07]} 2. c4 {[%clk 01:31:00]} {[%emt 00:00:05]} c6 {[%clk 01:31:18]}
{[%emt 00:00:07]} 3. Nf3 {[%clk 01:31:24]} {[%emt 00:00:06]} Nf6 {[%clk
01:31:41]} {[%emt 00:00:06]} 4. Nc3 {[%clk 01:31:49]} {[%emt 00:00:05]} dxc4
{[%clk 01:31:28]} {[%emt 00:00:44]} 5. a4 {[%clk 01:31:05]} {[%emt 00:01:14]}
Bf5 {[%clk 01:31:11]} {[%emt 00:00:46]} 6. Ne5 {[%clk 01:29:51]} {[%emt
00:01:45]} e6 {[%clk 01:28:34]} {[%emt 00:03:06]} 7. f3 {[%clk 01:27:00]}
{[%emt 00:03:21]} Bb4 {[%clk 01:23:17]} {[%emt 00:05:47]} 8. e4 {[%clk
01:24:03]} {[%emt 00:03:28]} Bg6 {[%clk 01:17:22]} {[%emt 00:06:24]} 9. Bxc4
{[%clk 01:17:12]} {[%emt 00:07:22]} Nbd7 {[%clk 01:14:18]} {[%emt 00:03:32]} 10.
Nd3 {[%clk 01:14:17]} {[%emt 00:03:26]} Be7 {[%clk 01:10:54]} {[%emt 00:03:53]}
11. Be3 {[%clk 01:11:15]} {[%emt 00:03:32]} Qc7 {[%clk 01:06:02]} {[%emt
00:05:23]} 12. Rc1 {[%clk 01:09:29]} {[%emt 00:02:16]} Rd8 {[%clk 00:59:56]}
{[%emt 00:06:35]} 13. Qe2 {[%clk 01:02:57]} {[%emt 00:07:03]} O-O {[%clk
00:57:07]} {[%emt 00:03:19]} 14. O-O {[%clk 00:56:29]} {[%emt 00:06:57]} Rfe8
{[%clk 00:49:30]} {[%emt 00:08:08]} 15. Qf2 {[%clk 00:52:52]} {[%emt 00:04:06]}
a6 {[%clk 00:39:31]} {[%emt 00:10:31]} 16. Rfd1 {[%clk 00:48:06]} {[%emt
00:05:14]} b5 {[%clk 00:27:35]} {[%emt 00:12:27]} 17. Ba2 {[%clk 00:43:15]}
{[%emt 00:05:21]} Qa5 {[%clk 00:24:02]} {[%emt 00:04:03]} 18. axb5 {[%clk
00:39:29]} {[%emt 00:04:18]} cxb5 {[%clk 00:23:41]} {[%emt 00:00:52]} 19. Ra1
{[%clk 00:37:52]} {[%emt 00:02:07]} b4 {[%clk 00:19:11]} {[%emt 00:04:59]} 20.
Bxe6 {[%clk 00:33:31]} {[%emt 00:04:51]} Qc7 {[%clk 00:18:17]} {[%emt
00:01:24]} 21. Nd5 {[%clk 00:30:49]} {[%emt 00:03:11]} Nxd5 {[%clk 00:15:49]}
{[%emt 00:02:58]} 22. Bxd5 {[%clk 00:31:06]} {[%emt 00:00:13]} Qb6 {[%clk
00:14:27]} {[%emt 00:01:53]} 23. Nf4 {[%clk 00:23:35]} {[%emt 00:08:01]} Rc8
{[%clk 00:12:54]} {[%emt 00:02:03]} 24. h4 {[%clk 00:20:44]} {[%emt 00:03:20]}
Nf6 {[%clk 00:12:38]} {[%emt 00:00:46]} 25. Bb3 {[%clk 00:18:30]} {[%emt
00:02:45]} Red8 {[%clk 00:09:05]} {[%emt 00:04:03]} 26. e5 {[%clk 00:16:42]}
{[%emt 00:02:16]} Ne8 {[%clk 00:05:15]} {[%emt 00:04:22]} 27. Nd5 {[%clk
00:11:22]} {[%emt 00:05:49]} Qb7 {[%clk 00:05:07]} {[%emt 00:00:39]} 28. Nxe7+
{[%clk 00:11:35]} {[%emt 00:00:16]} Qxe7 {[%clk 00:05:31]} {[%emt 00:00:06]} 29.
Bg5 {[%clk 00:11:57]} {[%emt 00:00:09]} Qb7 {[%clk 00:05:49]} {[%emt 00:00:12]}
30. Bxd8 {[%clk 00:12:13]} {[%emt 00:00:14]} Rxd8 {[%clk 00:06:16]} {[%emt
00:00:03]} 31. d5 {[%clk 00:12:12]} {[%emt 00:00:31]} Qe7 {[%clk 00:06:29]}
{[%emt 00:00:18]} 32. f4 {[%clk 00:11:45]} {[%emt 00:00:56]} Bf5 {[%clk
00:06:50]} {[%emt 00:00:10]} 33. Rxa6 {[%clk 00:11:53]} {[%emt 00:00:20]} Kh8
{[%clk 00:05:21]} {[%emt 00:01:59]} 34. d6 {[%clk 00:11:54]} {[%emt 00:00:29]}
Qd7 {[%clk 00:05:37]} {[%emt 00:00:15]} 35. Ba4 {[%clk 00:11:37]} {[%emt
00:00:47]} Qe6 {[%clk 00:05:57]} {[%emt 00:00:11]} 36. Bxe8 {[%clk 00:11:51]}
{[%emt 00:00:15]} Qxe8 {[%clk 00:06:18]} {[%emt 00:00:09]} 37. d7 {[%clk
00:12:04]} {[%emt 00:00:17]} Bxd7 {[%clk 00:06:37]} {[%emt 00:00:10]} 38. Rad6
{[%clk 00:12:28]} {[%emt 00:00:06]} h5 {[%clk 00:06:46]} {[%emt 00:00:21]} 39.
Qd4 {[%clk 00:12:44]} {[%emt 00:00:14]} Qe7 {[%clk 00:07:03]} {[%emt 00:00:14]}
40. Rxd7 {[%clk 00:13:02]} {[%emt 00:00:11]} Rxd7 {[%clk 00:07:30]} {[%emt
00:00:04]} 41. Qxd7 {[%clk 00:13:23]} Qxh4 {[%clk 00:07:54]} {[%emt 00:00:14]}
42. Qd8+ {[%clk 00:13:46]} {[%emt 00:00:08]} 1-0

[Event "NJSK 2026 Jeugd C"]
[Site "Helmond, Netherlands"]
[Date "2026.04.28"]
[Round "5.10"]
[White "Lalkota, Sai Pranav Tejas"]
[Black "Nadrshin, Oleg"]
[Result "1/2-1/2"]
[TimeControl "90min/40moves + 30sec/move"]
[WhiteTitle "-"]
[BlackTitle "-"]
[WhiteFideId "1087690"]
[BlackFideId "40111873"]
[WhiteElo "1830"]
[BlackElo "1894"]

1. c4 {[%clk 01:29:26]} {[%emt 00:01:34]} c5 {[%clk 01:30:54]} {[%emt
00:00:06]} 2. g3 {[%clk 01:29:50]} {[%emt 00:00:06]} Nc6 {[%clk 01:31:19]}
{[%emt 00:00:05]} 3. Bg2 {[%clk 01:30:16]} {[%emt 00:00:04]} g6 {[%clk
01:31:41]} {[%emt 00:00:08]} 4. Nc3 {[%clk 01:30:41]} {[%emt 00:00:06]} Bg7
{[%clk 01:32:06]} {[%emt 00:00:05]} 5. e4 {[%clk 01:31:04]} {[%emt 00:00:07]}
e5 {[%clk 01:31:41]} {[%emt 00:00:55]} 6. Nge2 {[%clk 01:31:24]} {[%emt
00:00:10]} d6 {[%clk 01:31:25]} {[%emt 00:00:46]} 7. O-O {[%clk 01:31:46]}
{[%emt 00:00:07]} Nge7 {[%clk 01:31:35]} {[%emt 00:00:20]} 8. f4 {[%clk
01:32:11]} {[%emt 00:00:05]} exf4 {[%clk 01:29:34]} {[%emt 00:02:32]} 9. Nxf4
{[%clk 01:32:20]} {[%emt 00:00:21]} O-O {[%clk 01:29:06]} {[%emt 00:00:57]} 10.
d3 {[%clk 01:31:12]} {[%emt 00:01:38]} a6 {[%clk 01:26:04]} {[%emt 00:03:32]}
11. Be3 {[%clk 01:31:24]} {[%emt 00:00:19]} Nd4 {[%clk 01:25:31]} {[%emt
00:01:03]} 12. Qd2 {[%clk 01:31:33]} {[%emt 00:00:20]} Rb8 {[%clk 01:22:00]}
{[%emt 00:04:01]} 13. Ncd5 {[%clk 01:28:15]} {[%emt 00:03:49]} Nxd5 {[%clk
01:17:16]} {[%emt 00:05:14]} 14. Nxd5 {[%clk 01:28:40]} {[%emt 00:00:05]} Be6
{[%clk 01:12:05]} {[%emt 00:05:40]} 15. Bg5 {[%clk 01:28:30]} {[%emt 00:00:40]}
f6 {[%clk 01:04:44]} {[%emt 00:07:51]} 16. Be3 {[%clk 01:27:07]} {[%emt
00:01:53]} Bxd5 {[%clk 00:58:54]} {[%emt 00:06:21]} 17. cxd5 {[%clk 01:26:43]}
{[%emt 00:00:55]} f5 {[%clk 00:51:59]} {[%emt 00:07:25]} 18. Bxd4 {[%clk
01:26:04]} {[%emt 00:01:09]} Bxd4+ {[%clk 00:52:01]} 19. Kh1 {[%clk 01:26:28]}
{[%emt 00:00:33]} fxe4 {[%clk 00:46:45]} {[%emt 00:05:47]} 20. Rxf8+ {[%clk
01:26:30]} {[%emt 00:00:27]} Qxf8 {[%clk 00:47:04]} {[%emt 00:00:12]} 21. Rf1
{[%clk 01:26:08]} {[%emt 00:00:50]} Qg7 {[%clk 00:36:55]} {[%emt 00:10:40]} 22.
dxe4 {[%clk 01:24:31]} {[%emt 00:02:07]} Rf8 {[%clk 00:29:41]} {[%emt
00:07:44]} 23. Rxf8+ {[%clk 01:23:25]} {[%emt 00:01:35]} Qxf8 {[%clk 00:29:47]}
{[%emt 00:00:25]} 24. b3 {[%clk 01:23:34]} {[%emt 00:00:21]} Kg7 {[%clk
00:26:08]} {[%emt 00:04:09]} 25. Qe2 {[%clk 01:21:47]} {[%emt 00:02:16]} Qf7
{[%clk 00:23:32]} {[%emt 00:03:05]} 1/2-1/2

[Event "NJSK 2026 Jeugd C"]
[Site "Helmond, Netherlands"]
[Date "2026.04.28"]
[Round "5.11"]
[White "Zhou, Yanyang"]
[Black "Fu, Ziqing"]
[Result "1-0"]
[TimeControl "90min/40moves + 30sec/move"]
[WhiteTitle "-"]
[BlackTitle "-"]
[WhiteFideId "40109739"]
[BlackFideId "40109623"]
[WhiteElo "1860"]
[BlackElo "1810"]

1. e4 {[%clk 01:30:58]} {[%emt 00:00:01]} e5 {[%clk 01:29:59]} {[%emt
00:01:00]} 2. Nf3 {[%clk 01:31:25]} {[%emt 00:00:03]} Nc6 {[%clk 01:28:58]}
{[%emt 00:01:31]} 3. Bb5 {[%clk 01:31:52]} {[%emt 00:00:03]} a6 {[%clk
01:28:00]} {[%emt 00:01:28]} 4. Ba4 {[%clk 01:32:12]} {[%emt 00:00:10]} Nf6
{[%clk 01:27:57]} {[%emt 00:00:32]} 5. O-O {[%clk 01:32:31]} {[%emt 00:00:12]}
b5 {[%clk 01:26:59]} {[%emt 00:01:28]} 6. Bb3 {[%clk 01:32:33]} {[%emt
00:00:29]} Bc5 {[%clk 01:25:58]} {[%emt 00:01:30]} 7. a4 {[%clk 01:32:24]}
{[%emt 00:00:39]} Bb7 {[%clk 01:25:42]} {[%emt 00:00:45]} 8. d3 {[%clk
01:32:48]} {[%emt 00:00:08]} O-O {[%clk 01:25:30]} {[%emt 00:00:40]} 9. Bg5
{[%clk 01:32:36]} {[%emt 00:00:43]} Be7 {[%clk 01:25:10]} {[%emt 00:00:50]} 10.
axb5 {[%clk 01:32:04]} {[%emt 00:01:02]} axb5 {[%clk 01:24:27]} {[%emt
00:01:11]} 11. Rxa8 {[%clk 01:31:33]} {[%emt 00:01:04]} Bxa8 {[%clk 01:24:33]}
{[%emt 00:00:23]} 12. Na3 {[%clk 01:30:45]} {[%emt 00:01:18]} Bxa3 {[%clk
01:23:35]} {[%emt 00:01:28]} 13. bxa3 {[%clk 01:31:07]} {[%emt 00:00:08]} h6
{[%clk 01:23:16]} {[%emt 00:00:49]} 14. Bc1 {[%clk 01:29:38]} {[%emt 00:02:00]}
d5 {[%clk 01:23:28]} {[%emt 00:00:17]} 15. exd5 {[%clk 01:26:34]} {[%emt
00:03:34]} Nxd5 {[%clk 01:22:49]} {[%emt 00:01:09]} 16. Bb2 {[%clk 01:26:21]}
{[%emt 00:00:43]} Re8 {[%clk 01:22:46]} {[%emt 00:00:30]} 17. Re1 {[%clk
01:26:13]} {[%emt 00:00:41]} Qd6 {[%clk 01:22:35]} {[%emt 00:00:40]} 18. Qa1
{[%clk 01:22:58]} {[%emt 00:03:45]} Nf6 {[%clk 01:10:26]} {[%emt 00:12:40]} 19.
Nxe5 {[%clk 01:17:42]} {[%emt 00:05:46]} Nxe5 {[%clk 01:09:55]} {[%emt
00:01:00]} 20. Rxe5 {[%clk 01:15:07]} {[%emt 00:03:05]} Rxe5 {[%clk 01:09:45]}
{[%emt 00:00:40]} 21. Bxe5 {[%clk 01:15:32]} {[%emt 00:00:06]} Qc6 {[%clk
01:09:36]} {[%emt 00:00:38]} 22. f3 {[%clk 01:15:35]} {[%emt 00:00:27]} Ne8
{[%clk 01:09:25]} {[%emt 00:00:41]} 23. Qd4 {[%clk 01:12:12]} {[%emt 00:03:53]}
Qg6 {[%clk 01:06:34]} {[%emt 00:03:20]} 24. Qd8 {[%clk 01:08:12]} {[%emt
00:04:32]} Bc6 {[%clk 01:00:44]} {[%emt 00:06:20]} 25. Bxc7 {[%clk 01:04:46]}
{[%emt 00:03:56]} Kh7 {[%clk 01:00:40]} {[%emt 00:00:33]} 26. Bg3 {[%clk
01:04:40]} {[%emt 00:00:36]} Nf6 {[%clk 01:00:40]} {[%emt 00:00:31]} 27. Qd6
{[%clk 01:03:12]} {[%emt 00:01:56]} Bd7 {[%clk 00:59:50]} {[%emt 00:01:20]} 28.
Qe7 {[%clk 01:02:43]} {[%emt 00:00:59]} Be8 {[%clk 00:59:19]} {[%emt 00:01:03]}
29. Bh4 {[%clk 01:01:23]} {[%emt 00:01:50]} Bc6 {[%clk 00:58:53]} {[%emt
00:00:55]} 30. Bxf7 {[%clk 00:58:22]} {[%emt 00:03:32]} Qf5 {[%clk 00:58:25]}
{[%emt 00:00:58]} 31. Bxf6 {[%clk 00:57:48]} {[%emt 00:01:04]} Qxf6 {[%clk
00:58:30]} {[%emt 00:00:24]} 32. Qxf6 {[%clk 00:58:02]} {[%emt 00:00:17]} gxf6
{[%clk 00:58:43]} {[%emt 00:00:17]} 33. c4 {[%clk 00:58:14]} {[%emt 00:00:19]}
Kg7 {[%clk 00:58:58]} {[%emt 00:00:14]} 34. cxb5 {[%clk 00:58:00]} {[%emt
00:00:45]} Bxb5 {[%clk 00:59:11]} {[%emt 00:00:16]} 35. Bc4 {[%clk 00:58:25]}
{[%emt 00:00:05]} Bc6 {[%clk 00:58:40]} {[%emt 00:00:57]} 36. Kf2 {[%clk
00:58:35]} {[%emt 00:00:23]} Kf8 {[%clk 00:58:46]} {[%emt 00:00:25]} 37. Ke3
{[%clk 00:58:59]} {[%emt 00:00:06]} Ke7 {[%clk 00:58:58]} {[%emt 00:00:17]} 38.
d4 {[%clk 00:59:18]} {[%emt 00:00:12]} Kd6 {[%clk 00:58:31]} {[%emt 00:00:54]}
39. Kf4 {[%clk 00:58:25]} {[%emt 00:01:26]} Bd7 {[%clk 00:58:40]} {[%emt
00:00:19]} 40. Bb3 {[%clk 00:57:59]} {[%emt 00:00:58]} Bc8 {[%clk 00:58:55]}
{[%emt 00:00:16]} 41. a4 {[%clk 00:58:20]} {[%emt 00:00:09]} Bd7 {[%clk
00:58:59]} {[%emt 00:00:25]} 42. a5 {[%clk 00:58:40]} {[%emt 00:00:11]} Bc8
{[%clk 00:58:58]} {[%emt 00:00:30]} 43. Bc4 {[%clk 00:58:52]} {[%emt 00:00:18]}
Kc6 {[%clk 00:58:40]} {[%emt 00:00:47]} 44. a6 {[%clk 00:58:59]} {[%emt
00:00:24]} Kb6 {[%clk 00:58:53]} {[%emt 00:00:17]} 45. h4 {[%clk 00:58:04]}
{[%emt 00:01:25]} Ka7 {[%clk 00:58:59]} {[%emt 00:00:23]} 46. g4 {[%clk
00:58:25]} {[%emt 00:00:11]} Kb6 {[%clk 00:58:59]} {[%emt 00:00:28]} 47. g5
{[%clk 00:58:42]} {[%emt 00:00:14]} fxg5+ {[%clk 00:58:59]} {[%emt 00:00:29]}
48. hxg5 {[%clk 00:59:07]} {[%emt 00:00:06]} hxg5+ {[%clk 00:59:05]} {[%emt
00:00:23]} 49. Kxg5 {[%clk 00:59:34]} {[%emt 00:00:04]} Ka7 {[%clk 00:58:57]}
{[%emt 00:00:37]} 50. f4 {[%clk 00:59:30]} {[%emt 00:00:35]} Kb6 {[%clk
00:58:51]} {[%emt 00:00:36]} 51. f5 {[%clk 00:59:54]} {[%emt 00:00:06]} Ka7
{[%clk 00:58:51]} {[%emt 00:00:29]} 52. f6 {[%clk 01:00:19]} {[%emt 00:00:06]}
Kb6 {[%clk 00:58:59]} {[%emt 00:00:22]} 53. f7 {[%clk 01:00:30]} {[%emt
00:00:20]} Ka7 {[%clk 00:58:48]} {[%emt 00:00:39]} 54. f8=Q {[%clk 01:00:45]}
{[%emt 00:00:15]} Kb8 {[%clk 00:59:05]} {[%emt 00:00:14]} 55. Qb4+ {[%clk
01:01:03]} {[%emt 00:00:12]} Ka7 {[%clk 00:58:53]} {[%emt 00:00:43]} 56. Qe7+
{[%clk 01:01:22]} {[%emt 00:00:10]} Kb6 {[%clk 00:58:59]} {[%emt 00:00:23]} 57.
Qc5# {[%clk 01:01:37]} {[%emt 00:00:15]} 1-0

[Event "NJSK 2026 Jeugd C"]
[Site "Helmond, Netherlands"]
[Date "2026.04.28"]
[Round "5.12"]
[White "Shaikh, Rushaan"]
[Black "Okita, Ryoga"]
[Result "1/2-1/2"]
[TimeControl "90min/40moves + 30sec/move"]
[WhiteTitle "-"]
[BlackTitle "-"]
[WhiteFideId "40113604"]
[BlackFideId "1090666"]
[WhiteElo "1842"]
[BlackElo "1812"]

1. f4 {[%clk 01:30:57]} {[%emt 00:00:02]} c5 {[%clk 01:30:45]} {[%emt
00:00:15]} 2. Nf3 {[%clk 01:31:22]} {[%emt 00:00:05]} Nc6 {[%clk 01:30:59]}
{[%emt 00:00:16]} 3. e3 {[%clk 01:31:45]} {[%emt 00:00:07]} g6 {[%clk
01:31:13]} {[%emt 00:00:17]} 4. Bb5 {[%clk 01:32:02]} {[%emt 00:00:12]} Bg7
{[%clk 01:30:32]} {[%emt 00:01:11]} 5. Bxc6 {[%clk 01:32:23]} {[%emt 00:00:09]}
bxc6 {[%clk 01:30:46]} {[%emt 00:00:16]} 6. O-O {[%clk 01:32:12]} {[%emt
00:00:41]} Nf6 {[%clk 01:30:49]} {[%emt 00:00:27]} 7. d3 {[%clk 01:32:31]}
{[%emt 00:00:11]} d6 {[%clk 01:30:38]} {[%emt 00:00:41]} 8. e4 {[%clk
01:32:17]} {[%emt 00:00:44]} Bg4 {[%clk 01:29:58]} {[%emt 00:01:09]} 9. h3
{[%clk 01:32:26]} {[%emt 00:00:22]} Bxf3 {[%clk 01:30:18]} {[%emt 00:00:10]} 10.
Qxf3 {[%clk 01:32:53]} {[%emt 00:00:03]} O-O {[%clk 01:29:31]} {[%emt
00:01:17]} 11. Nc3 {[%clk 01:32:55]} {[%emt 00:00:29]} d5 {[%clk 01:28:48]}
{[%emt 00:01:12]} 12. e5 {[%clk 01:31:15]} {[%emt 00:02:10]} Nd7 {[%clk
01:28:21]} {[%emt 00:00:57]} 13. b3 {[%clk 01:31:07]} {[%emt 00:00:38]} e6
{[%clk 01:26:01]} {[%emt 00:02:50]} 14. Na4 {[%clk 01:28:19]} {[%emt 00:03:19]}
Qa5 {[%clk 01:24:25]} {[%emt 00:02:06]} 15. Ba3 {[%clk 01:23:47]} {[%emt
00:05:00]} Rfc8 {[%emt 00:00:40]} 16. Qe3 {[%clk 01:23:06]} {[%emt 00:01:06]}
d4 {[%clk 01:17:14]} {[%emt 00:07:37]} 17. Qe1 {[%clk 01:22:43]} {[%emt
00:00:52]} Qxe1 {[%clk 01:14:13]} {[%emt 00:03:31]} 18. Rfxe1 {[%clk 01:22:53]}
{[%emt 00:00:21]} Bf8 {[%clk 01:14:16]} {[%emt 00:00:27]} 19. Rac1 {[%clk
01:22:16]} {[%emt 00:01:07]} Nb6 {[%clk 01:11:59]} {[%emt 00:02:48]} 20. Bxc5
{[%clk 01:20:30]} {[%emt 00:02:15]} Nxa4 {[%clk 01:11:54]} {[%emt 00:00:35]} 21.
Bxf8 {[%clk 01:20:58]} {[%emt 00:00:03]} Nc3 {[%clk 01:11:34]} {[%emt
00:00:50]} 22. Bc5 {[%clk 01:20:09]} {[%emt 00:01:17]} Rd8 {[%clk 01:11:03]}
{[%emt 00:01:02]} 23. a3 {[%clk 01:19:47]} {[%emt 00:00:53]} a5 {[%clk
01:09:04]} {[%emt 00:02:28]} 24. g3 {[%clk 01:17:10]} {[%emt 00:03:07]} Rd5
{[%clk 01:03:54]} {[%emt 00:05:40]} 25. Bd6 {[%clk 00:55:05]} {[%emt 00:22:32]}
Rxd6 {[%clk 01:00:09]} {[%emt 00:04:18]} 26. exd6 {[%clk 00:54:49]} {[%emt
00:00:47]} Rd8 {[%clk 00:58:22]} {[%emt 00:02:16]} 27. Kf2 {[%clk 00:53:15]}
{[%emt 00:02:03]} Rxd6 {[%clk 00:58:19]} {[%emt 00:00:34]} 28. Re5 {[%clk
00:52:07]} {[%emt 00:01:37]} Nd5 {[%clk 00:58:16]} {[%emt 00:00:35]} 29. c4
{[%clk 00:50:12]} {[%emt 00:02:24]} dxc3 {[%clk 00:57:43]} {[%emt 00:01:03]} 30.
Rxd5 {[%clk 00:50:26]} {[%emt 00:00:16]} cxd5 {[%clk 00:56:15]} {[%emt
00:01:57]} 31. Rxc3 {[%clk 00:50:46]} {[%emt 00:00:11]} Rb6 {[%clk 00:56:36]}
{[%emt 00:00:09]} 32. Ke3 {[%clk 00:49:52]} {[%emt 00:01:24]} Kg7 {[%clk
00:52:57]} {[%emt 00:04:09]} 33. b4 {[%clk 00:48:49]} {[%emt 00:01:33]} axb4
{[%clk 00:50:48]} {[%emt 00:02:39]} 34. Rb3 {[%clk 00:49:13]} {[%emt 00:00:06]}
Kf6 {[%clk 00:50:10]} {[%emt 00:01:08]} 35. Rxb4 {[%clk 00:46:12]} {[%emt
00:03:32]} Ra6 {[%clk 00:48:51]} {[%emt 00:01:49]} 36. a4 {[%clk 00:46:17]}
{[%emt 00:00:25]} h5 {[%clk 00:48:33]} {[%emt 00:00:47]} 37. Kd4 {[%clk
00:45:33]} {[%emt 00:01:14]} Ra5 {[%clk 00:47:37]} {[%emt 00:01:26]} 38. Kc3
{[%clk 00:45:16]} {[%emt 00:00:45]} Kf5 {[%clk 00:47:01]} {[%emt 00:01:09]} 39.
Rb7 {[%clk 00:44:42]} {[%emt 00:01:02]} f6 {[%clk 00:46:53]} {[%emt 00:00:38]}
40. Kb4 {[%clk 00:45:04]} {[%emt 00:00:09]} Ra8 {[%clk 00:47:05]} {[%emt
00:00:19]} 41. Rb6 {[%clk 00:42:39]} {[%emt 00:02:57]} Re8 {[%clk 00:36:31]}
{[%emt 00:11:03]} 42. a5 {[%clk 00:35:00]} {[%emt 00:08:09]} h4 {[%clk
00:36:19]} {[%emt 00:00:42]} 43. gxh4 {[%clk 00:35:00]} {[%emt 00:00:30]} Kxf4
{[%clk 00:36:33]} {[%emt 00:00:16]} 44. a6 {[%clk 00:35:23]} {[%emt 00:00:06]}
Kg3 {[%clk 00:36:31]} {[%emt 00:00:33]} 45. a7 {[%clk 00:35:38]} {[%emt
00:00:15]} Ra8 {[%clk 00:36:48]} {[%emt 00:00:13]} 46. Rxe6 {[%clk 00:36:03]}
{[%emt 00:00:05]} Rxa7 {[%clk 00:35:38]} {[%emt 00:01:40]} 47. Rxf6 {[%clk
00:36:25]} {[%emt 00:00:08]} Rg7 {[%clk 00:35:36]} {[%emt 00:00:31]} 48. Kc5
{[%clk 00:36:35]} {[%emt 00:00:21]} Kxh3 {[%clk 00:34:34]} {[%emt 00:01:32]} 49.
h5 {[%clk 00:27:42]} {[%emt 00:09:23]} gxh5 {[%clk 00:34:48]} {[%emt 00:00:16]}
50. Kxd5 {[%clk 00:27:57]} {[%emt 00:00:15]} Kg3 {[%clk 00:34:46]} {[%emt
00:00:32]} 51. Rh6 {[%clk 00:26:04]} {[%emt 00:02:22]} h4 {[%clk 00:34:41]}
{[%emt 00:00:36]} 52. d4 {[%clk 00:25:41]} {[%emt 00:00:53]} h3 {[%clk
00:34:08]} {[%emt 00:01:02]} 53. Ke6 {[%clk 00:25:25]} {[%emt 00:00:47]} Rg4
{[%clk 00:33:08]} {[%emt 00:01:30]} 54. d5 {[%clk 00:25:35]} {[%emt 00:00:19]}
h2 {[%clk 00:32:45]} {[%emt 00:00:53]} 55. d6 {[%clk 00:25:39]} {[%emt
00:00:27]} Re4+ {[%clk 00:27:02]} {[%emt 00:06:13]} 56. Kf7 {[%clk 00:25:25]}
{[%emt 00:00:43]} Rd4 {[%clk 00:24:41]} {[%emt 00:02:52]} 57. Ke7 {[%clk
00:25:16]} {[%emt 00:00:38]} Rh4 {[%clk 00:24:28]} {[%emt 00:00:43]} 58. Rxh4
{[%clk 00:25:34]} {[%emt 00:00:12]} Kxh4 {[%clk 00:24:52]} {[%emt 00:00:06]} 59.
d7 {[%clk 00:25:59]} {[%emt 00:00:06]} h1=Q {[%clk 00:24:59]} {[%emt 00:00:23]}
60. d8=Q {[%clk 00:26:18]} {[%emt 00:00:11]} Qg2 {[%clk 00:24:49]} {[%emt
00:00:38]} 61. Qh8+ {[%clk 00:26:21]} {[%emt 00:00:28]} Kg3 {[%clk 00:25:05]}
{[%emt 00:00:15]} 62. Qg7+ {[%clk 00:26:30]} {[%emt 00:00:20]} Kh2 {[%clk
00:25:16]} {[%emt 00:00:20]} 63. Qxg2+ {[%clk 00:26:26]} {[%emt 00:00:34]} Kxg2
{[%clk 00:25:37]} {[%emt 00:00:09]} 1/2-1/2